fUST/lending_fUST_20250904
["ID","MTS","AMOUNT","RATE_DAILY","PERIOD"]
[383431997,1756936239601,-500.0,0.00014201,2]
[383431998,1756936239610,-500.0,0.00014201,2]
[383432000,1756936239620,-10565.36259732,0.00014202,2]
[383432002,1756936239630,-160.0,0.0001422,2]
[383432004,1756936239639,-160.0,0.0001422,2]
[383432006,1756936239649,-160.0,0.0001422,2]
[383432008,1756936239658,-417.15472785,0.0001422,2]
[383432010,1756936239667,-160.0,0.0001422,2]
[383432012,1756936239677,-217.50314573,0.0001422,2]
[383432014,1756936239686,-480.0,0.00014244,2]
[383432016,1756936239696,-480.0,0.00014244,2]
[383432018,1756936239705,-480.0,0.00014244,2]
[383432020,1756936239714,-681.13,0.00014244,2]
[383432023,1756936239723,-480.0,0.00014244,2]
[383432026,1756936239734,-1151.28,0.00014244,2]
[383432029,1756936239744,-480.0,0.00014246,2]
[383432032,1756936239754,-1051.09,0.00014246,2]
[383432035,1756936239763,-480.0,0.00014246,2]
[383432038,1756936239773,-480.0,0.00014246,2]
[383432041,1756936239782,-480.0,0.00014246,2]
[383432044,1756936239791,-480.0,0.00014246,2]
[383432047,1756936239801,-625.07,0.00014246,2]
[383432049,1756936239811,-480.0,0.00014246,2]
[383432051,1756936239820,-480.0,0.00014246,2]
[383432053,1756936239831,-480.0,0.00014246,2]
[383432055,1756936239841,-2937.94,0.00014246,2]
[383432057,1756936239851,-480.0,0.00014246,2]
[383432059,1756936239860,-753.17,0.00014246,2]
[383432061,1756936239870,-480.0,0.00014246,2]
[383432063,1756936239879,-2097.92,0.00014246,2]
[383432065,1756936239889,-480.0,0.00014246,2]
[383432067,1756936239898,-480.0,0.00014246,2]
[383432069,1756936239909,-480.0,0.00014246,2]
[383432071,1756936239919,-594.81,0.00014246,2]
[383432073,1756936239929,-523.61,0.00014246,2]
[383432075,1756936239938,-524.06,0.00014246,2]
[383432077,1756936239947,-480.0,0.00014246,2]
[383432079,1756936239958,-480.0,0.00014246,2]
[383432081,1756936239968,-480.0,0.00014246,2]
[383432083,1756936239977,-1831.4,0.00014246,2]
[383432085,1756936239987,-480.0,0.00014246,2]
[383432087,1756936239996,-480.0,0.00014246,2]
[383432089,1756936240005,-1144.34,0.00014246,2]
[383432091,1756936240015,-480.0,0.00014246,2]
[383432093,1756936240024,-639.22123396,0.00014373,2]
[383432095,1756936240034,-187.78006525,0.00014412,2]
[383432097,1756936240043,-8748.17241062,0.00014416,2]
[383432099,1756936240052,-370000.0,0.00014421,2]
[383432101,1756936240062,-500.0,0.00014473,2]
[383432103,1756936240071,-500.0,0.00014473,2]
[383432105,1756936240081,-500.0,0.00014473,2]
[383432107,1756936240092,-500.0,0.00014473,2]
[383432109,1756936240101,-500.0,0.00014473,2]
[383432111,1756936240111,-500.0,0.00014473,2]
[383432113,1756936240120,-500.0,0.00014473,2]
[383432115,1756936240129,-322.60671197,0.00014473,2]
[383432117,1756936240140,-500.0,0.00014473,2]
[383432119,1756936240149,-500.0,0.00014473,2]
[383432121,1756936240159,-227.99006048,0.00014473,2]
[383432123,1756936240168,-168.31865935,0.00014473,2]
[383432125,1756936240178,-500.0,0.00014473,2]
[383432127,1756936240187,-500.0,0.00014473,2]
[383432129,1756936240197,-500.0,0.00014473,2]
[383432131,1756936240206,-500.0,0.00014473,2]
[383432133,1756936240215,-500.0,0.00014473,2]
[383432135,1756936240225,-613.51767791,0.00014473,2]
[383432137,1756936240234,-190.0,0.00014507,2]
[383432139,1756936240244,-530.32150586,0.00014516,2]
[383432141,1756936240255,-160.0,0.00014516,2]
[383432143,1756936240264,-154.76,0.00014518,2]
[383432145,1756936240274,-480.0,0.00014518,2]
[383432147,1756936240283,-681.13,0.00014518,2]
[383432149,1756936240293,-488.16,0.00014518,2]
[383432152,1756936240303,-1151.28,0.00014518,2]
[383432154,1756936240313,-480.0,0.00014519,2]
[383432155,1756936240322,-480.0,0.00014519,2]
[383432157,1756936240332,-480.0,0.00014519,2]
[383432159,1756936240341,-480.0,0.00014519,2]
[383432161,1756936240350,-480.0,0.00014519,2]
[383432164,1756936240361,-480.0,0.00014519,2]
[383432166,1756936240371,-4894.360076,0.00014519,2]
[383432168,1756936240380,-1203.89,0.00014519,2]
[383432170,1756936240390,-480.0,0.00014519,2]
[383432172,1756936240400,-480.0,0.00014519,2]
[383432173,1756936240409,-480.0,0.00014519,2]
[383432175,1756936240418,-874.76,0.00014519,2]
[383432177,1756936240428,-480.0,0.00014519,2]
[383432179,1756936240438,-480.0,0.00014519,2]
[383432181,1756936240448,-480.0,0.00014519,2]
[383432183,1756936240459,-3158.9815115,0.00014519,2]
[383432186,1756936240469,-480.0,0.00014519,2]
[383432188,1756936240479,-480.0,0.00014519,2]
[383432189,1756936240489,-480.0,0.00014519,2]
[383432191,1756936240499,-612.03,0.00014519,2]
[383432194,1756936240509,-286.33439683,0.00014519,2]
[383432196,1756936240519,-480.0,0.00014519,2]
[383432198,1756936240529,-480.0,0.00014519,2]
[383432200,1756936240538,-480.0,0.00014519,2]
[383432202,1756936240548,-480.0,0.00014519,2]
[383432204,1756936240558,-480.0,0.00014519,2]
[383432206,1756936240567,-480.0,0.00014519,2]
[383432208,1756936240577,-480.0,0.00014519,2]
[383432210,1756936240587,-480.0,0.00014519,2]
[383432212,1756936240596,-480.0,0.00014519,2]
[383432214,1756936240605,-480.0,0.00014519,2]
[383432216,1756936240615,-480.0,0.00014519,2]
[383432218,1756936240624,-480.0,0.00014519,2]
[383432220,1756936240634,-480.0,0.00014519,2]
[383432222,1756936240643,-480.0,0.00014519,2]
[383432224,1756936240653,-480.0,0.00014519,2]
[383432226,1756936240663,-480.0,0.00014519,2]
[383432228,1756936240672,-480.0,0.00014519,2]
[383432230,1756936240682,-480.0,0.00014519,2]
[383432232,1756936240691,-947.26,0.00014519,2]
[383432234,1756936240700,-480.0,0.00014519,2]
[383432236,1756936240709,-480.0,0.00014519,2]
[383432238,1756936240719,-480.0,0.00014519,2]
[383432240,1756936240728,-480.0,0.00014519,2]
[383432242,1756936240738,-480.0,0.00014519,2]
[383432244,1756936240747,-480.0,0.00014519,2]
[383432246,1756936240757,-480.0,0.00014519,2]
[383432248,1756936240766,-480.0,0.0001452,2]
[383432250,1756936240775,-1051.09,0.0001452,2]
[383432252,1756936240784,-480.0,0.0001452,2]
[383432254,1756936240794,-480.0,0.0001452,2]
[383432256,1756936240803,-480.0,0.0001452,2]
[383432258,1756936240813,-1764.24160639,0.0001452,2]
[383432260,1756936240822,-480.0,0.0001452,2]
[383432262,1756936240831,-480.0,0.0001452,2]
[383432264,1756936240841,-480.0,0.0001452,2]
[383432266,1756936240850,-2937.94,0.0001452,2]
[383432268,1756936240859,-480.0,0.0001452,2]
[383432270,1756936240869,-753.17,0.0001452,2]
[383432272,1756936240878,-480.0,0.0001452,2]
[383432274,1756936240887,-2097.92,0.0001452,2]
[383432276,1756936240896,-480.0,0.0001452,2]
[383432278,1756936240906,-2339.22103155,0.0001452,2]
[383432280,1756936240915,-519.43,0.0001452,2]
[383432282,1756936240925,-395.13933883,0.0001452,2]
[383432284,1756936240934,-594.81,0.0001452,2]
[383432286,1756936240943,-523.61,0.0001452,2]
[383432288,1756936240952,-524.06,0.0001452,2]
[383432289,1756936240961,-480.0,0.0001452,2]
[383432290,1756936240970,-480.0,0.0001452,2]
[383432291,1756936240980,-480.0,0.0001452,2]
[383432292,1756936240989,-1831.4,0.0001452,2]
[383432293,1756936240997,-480.0,0.0001452,2]
[383432294,1756936241007,-619.38,0.0001452,2]
[383432296,1756936241016,-1144.34,0.0001452,2]
[383432298,1756936241026,-480.0,0.0001452,2]
[383432300,1756936241035,-3326.5341759,0.00014526,2]
[383432302,1756936241045,-151.0,0.00014562,2]
[383432305,1756936241054,-500.0,0.00014573,2]
[383432306,1756936241064,-500.0,0.00014573,2]
[383432308,1756936241073,-500.21485879,0.00014573,2]
[383432310,1756936241082,-500.0,0.00014573,2]
[383432313,1756936241092,-500.0,0.00014573,2]
[383432315,1756936241101,-151.0,0.00014573,2]
[383432317,1756936241111,-198.0,0.00014573,2]
[383432319,1756936241121,-500.0,0.00014573,2]
[383432321,1756936241132,-151.0,0.00014573,2]
[383432323,1756936241143,-151.0,0.00014573,2]
[383432325,1756936241152,-292.0,0.00014573,2]
[383432327,1756936241163,-151.0,0.00014573,2]
[383432329,1756936241172,-151.0,0.00014573,2]
[383432331,1756936241182,-151.0,0.00014573,2]
[383432333,1756936241191,-151.0,0.00014573,2]
[383432335,1756936241203,-151.0,0.00014573,2]
[383432337,1756936241213,-198.0,0.00014573,2]
[383432339,1756936241223,-151.0,0.00014573,2]
[383432341,1756936241233,-245.0,0.00014573,2]
[383432343,1756936241242,-245.0,0.00014573,2]
[383432345,1756936241251,-500.0,0.00014582,2]
[383432347,1756936241262,-500.0,0.00014588,2]
[383432349,1756936241272,-151.0,0.000146,2]
[383432351,1756936241282,-151.0,0.000146,2]
[383432353,1756936241292,-800.0,0.00014634,2]
[383432355,1756936241301,-639.22123394,0.00014659,2]
[383432357,1756936241311,-800.0,0.00014662,2]
[383432359,1756936241321,-800.0,0.00014696,2]
[383432361,1756936241330,-151.0,0.000147,2]
[383432363,1756936241340,-800.0,0.0001471,2]
[383432365,1756936241349,-5642.90399247,0.0001472,2]
[383432367,1756936241359,-5000.0,0.0001472,2]
[383432369,1756936241369,-5000.0,0.0001472,2]
[383432371,1756936241379,-800.0,0.00014751,2]
[383432373,1756936241389,-184.28866833,0.00014757,2]
[383432385,1756936241489,-585.94239107,0.00014757,2]
[383432388,1756936241500,-657.18366783,0.00014759,2]
[383432390,1756936241509,-448.16075018,0.00014762,2]
[383432392,1756936241518,-438.11319092,0.00014763,2]
[383432394,1756936241530,-1207.11232161,0.00014763,2]
[383432396,1756936241539,-194.35156241,0.00014785,2]
[383432398,1756936241552,-605.64843759,0.00014785,2]
[383432400,1756936241562,-4000.15156239,0.00014786,2]
[383432409,1756936241641,-260.41666667,0.00014516,2]
[383432425,1756936241780,-232.90165665,0.00014516,2]
[383432427,1756936241791,-846.3157213,0.00014516,2]
[383432429,1756936241800,-801.32355538,0.00014786,2]
[383433553,1756936253295,-503.63,0.00013698,2]
[383433555,1756936253305,-480.0,0.00013698,2]
[383433557,1756936253314,-196.0,0.00013799,2]
[383433559,1756936253324,-195.36916399,0.0001397,2]
[383433561,1756936253335,-284.63083601,0.0001397,2]
[383433563,1756936253344,-503.63,0.00013972,2]
[383433565,1756936253354,-480.0,0.00014244,2]
[383433567,1756936253364,-503.63,0.00014246,2]
[383433569,1756936253374,-530.32150586,0.00014516,2]
[383433571,1756936253383,-160.0,0.00014516,2]
[383433574,1756936253393,-480.0,0.00014518,2]
[383433575,1756936253402,-480.0,0.00014519,2]
[383433578,1756936253412,-503.63,0.0001452,2]
[383433579,1756936253424,-1731.48393552,0.00014786,2]
[383433582,1756936253434,-151.0,0.00014786,2]
[383433583,1756936253443,-480.0,0.00014792,2]
[383433586,1756936253453,-681.13,0.00014792,2]
[383433588,1756936253463,-1151.28,0.00014792,2]
[383433590,1756936253472,-480.0,0.00014793,2]
[383433592,1756936253481,-480.0,0.00014793,2]
[383433594,1756936253491,-480.0,0.00014793,2]
[383433596,1756936253500,-480.0,0.00014793,2]
[383433598,1756936253511,-409.78,0.00014793,2]
[383433600,1756936253521,-480.0,0.00014793,2]
[383433602,1756936253530,-480.0,0.00014793,2]
[383433603,1756936253540,-366.6,0.00014793,2]
[383433605,1756936253550,-480.0,0.00014793,2]
[383433607,1756936253560,-480.0,0.00014793,2]
[383433610,1756936253570,-480.0,0.00014793,2]
[383433611,1756936253579,-1203.89,0.00014793,2]
[383433613,1756936253588,-480.0,0.00014793,2]
[383433615,1756936253598,-480.0,0.00014793,2]
[383433618,1756936253608,-480.0,0.00014793,2]
[383433619,1756936253617,-874.76,0.00014793,2]
[383433622,1756936253628,-480.0,0.00014793,2]
[383433624,1756936253637,-480.0,0.00014793,2]
[383433626,1756936253647,-541.52,0.00014793,2]
[383433627,1756936253656,-480.0,0.00014793,2]
[383433629,1756936253665,-480.0,0.00014793,2]
[383433631,1756936253675,-612.03,0.00014793,2]
[383433633,1756936253685,-453.41752321,0.00014793,2]
[383433635,1756936253694,-480.0,0.00014793,2]
[383433638,1756936253704,-480.0,0.00014793,2]
[383433639,1756936253713,-480.0,0.00014793,2]
[383433641,1756936253723,-480.0,0.00014793,2]
[383433643,1756936253732,-480.0,0.00014793,2]
[383433645,1756936253742,-480.0,0.00014793,2]
[383433647,1756936253751,-480.0,0.00014793,2]
[383433649,1756936253762,-480.0,0.00014793,2]
[383433651,1756936253772,-480.0,0.00014793,2]
[383433653,1756936253782,-480.0,0.00014793,2]
[383433655,1756936253791,-480.0,0.00014793,2]
[383433657,1756936253801,-161.64,0.00014793,2]
[383433659,1756936253810,-947.26,0.00014793,2]
[383433661,1756936253819,-480.0,0.00014793,2]
[383433663,1756936253829,-480.0,0.00014793,2]
[383433665,1756936253838,-480.0,0.00014793,2]
[383433667,1756936253847,-480.0,0.00014793,2]
[383433669,1756936253857,-480.0,0.00014793,2]
[383433672,1756936253867,-480.0,0.00014793,2]
[383433674,1756936253877,-480.0,0.00014793,2]
[383433676,1756936253886,-162.96,0.00014794,2]
[383433677,1756936253895,-572.76,0.00014794,2]
[383433679,1756936253905,-480.0,0.00014794,2]
[383433682,1756936253914,-480.0,0.00014794,2]
[383433683,1756936253924,-246.32355375,0.00014794,2]
[383433685,1756936253934,-530.99,0.00014794,2]
[383433687,1756936253944,-480.0,0.00014794,2]
[383433688,1756936253953,-480.0,0.00014794,2]
[383433689,1756936253963,-480.0,0.00014794,2]
[383433690,1756936253973,-480.0,0.00014794,2]
[383433691,1756936253983,-548.49334807,0.00014794,2]
[383433693,1756936253993,-480.0,0.00014794,2]
[383433695,1756936254003,-480.0,0.00014794,2]
[383433697,1756936254012,-480.0,0.00014794,2]
[383433699,1756936254021,-480.0,0.00014794,2]
[383433701,1756936254031,-480.0,0.00014794,2]
[383433703,1756936254040,-480.0,0.00014794,2]
[383433704,1756936254049,-480.0,0.00014794,2]
[383433705,1756936254058,-392.06081918,0.00014794,2]
[383433706,1756936254067,-480.0,0.00014794,2]
[383433707,1756936254076,-218.54856176,0.00014794,2]
[383433708,1756936254085,-480.0,0.00014794,2]
[383433709,1756936254095,-237.98271704,0.00014794,2]
[383433710,1756936254103,-480.0,0.00014794,2]
[383433711,1756936254113,-480.0,0.00014794,2]
[383433712,1756936254122,-480.0,0.00014794,2]
[383433713,1756936254132,-480.0,0.00014794,2]
[383433714,1756936254141,-480.0,0.00014794,2]
[383433724,1756936254151,-480.0,0.00014794,2]
[383433726,1756936254249,-339.98635412,0.00014794,2]
[383433728,1756936254258,-480.0,0.00014794,2]
[383433730,1756936254268,-480.0,0.00014794,2]
[383433732,1756936254277,-177.98,0.00014794,2]
[383433734,1756936254286,-480.0,0.00014794,2]
[383433736,1756936254295,-480.0,0.00014794,2]
[383433737,1756936254306,-1051.09,0.00014794,2]
[383433738,1756936254315,-480.0,0.00014794,2]
[383433740,1756936254325,-480.0,0.00014794,2]
[383433742,1756936254334,-480.0,0.00014794,2]
[383433744,1756936254345,-271.24,0.00014794,2]
[383433746,1756936254354,-480.0,0.00014794,2]
[383433747,1756936254363,-2937.94,0.00014794,2]
[383433749,1756936254373,-480.0,0.00014794,2]
[383433751,1756936254383,-753.17,0.00014794,2]
[383433753,1756936254392,-480.0,0.00014794,2]
[383433755,1756936254402,-2097.92,0.00014794,2]
[383433757,1756936254412,-480.0,0.00014794,2]
[383433759,1756936254421,-594.81,0.00014794,2]
[383433760,1756936254431,-523.61,0.00014794,2]
[383433762,1756936254440,-524.06,0.00014794,2]
[383433764,1756936254450,-480.0,0.00014794,2]
[383433766,1756936254460,-480.0,0.00014794,2]
[383433768,1756936254472,-511.50413312,0.00014794,2]
[383433770,1756936254485,-1831.4,0.00014794,2]
[383433771,1756936254496,-480.0,0.00014794,2]
[383433772,1756936254505,-1144.34,0.00014794,2]
[383433773,1756936254515,-480.0,0.00014794,2]
[383433774,1756936254525,-503.63,0.00014794,2]
[383433775,1756936254536,-800.0,0.0001481,2]
[383433776,1756936254546,-800.0,0.00014818,2]
[383433777,1756936254556,-500.0,0.00014847,2]
[383433778,1756936254565,-292.0,0.00014847,2]
[383433779,1756936254574,-151.0,0.00014847,2]
[383433780,1756936254584,-151.0,0.00014847,2]
[383433781,1756936254593,-248.6153923,0.00014847,2]
[383433782,1756936254603,-500.0,0.00014869,2]
[383433783,1756936254613,-500.0,0.00014869,2]
[383433784,1756936254623,-500.0,0.00014869,2]
[383433785,1756936254632,-500.0,0.00014869,2]
[383433786,1756936254641,-800.0,0.00014878,2]
[383433787,1756936254651,-800.0,0.00014887,2]
[383433788,1756936254661,-151.0,0.000149,2]
[383433789,1756936254670,-639.22123394,0.00014945,2]
[383433790,1756936254680,-500.0,0.00014989,2]
[383433791,1756936254689,-114.61537067,0.00014989,2]
[383436257,1756936846131,167.3945075,0.00013061,2]
[383436273,1756937222327,154.19381298,0.0001308,2]
[383436274,1756937282241,154.19381298,0.00013081,2]
[383436275,1756937306842,1088.18095809,0.0002739,120]
[383436276,1756937342218,154.19381297,0.00013081,2]
[383436277,1756937364300,6014.8797939,0.00012774,2]
[383436317,1756937431925,-220.11109706,0.00013154,2]
[383436319,1756937431935,-220.11109706,0.00013287,2]
[383436321,1756937431945,-2311.54626971,0.00013598,2]
[383436322,1756937431955,-187.78006525,0.0001369,2]
[383436324,1756937431964,-1200.0,0.00013696,2]
[383436326,1756937431974,-1200.0,0.00013696,2]
[383436328,1756937431983,-500.0,0.00013697,2]
[383436330,1756937431993,-500.0,0.00013697,2]
[383436332,1756937432002,-500.0,0.00013697,2]
[383436334,1756937432012,-500.0,0.00013697,2]
[383436336,1756937432022,-500.0,0.00013697,2]
[383436338,1756937432031,-500.11658547,0.00013697,2]
[383436340,1756937432040,-72.62178047,0.00013697,2]
[383436342,1756937432052,-427.37821953,0.00013697,2]
[383436344,1756937432062,-500.0,0.00013697,2]
[383436346,1756937432072,-178.62139377,0.00013697,2]
[383436348,1756937432081,-500.0,0.00013697,2]
[383436350,1756937432090,-359.25029132,0.00013698,2]
[383436352,1756937432101,-120.74970868,0.00013698,2]
[383436354,1756937432111,-480.0,0.00013698,2]
[383436356,1756937432121,-317.2766634,0.00013698,2]
[383436359,1756937432136,-52.96974148,0.00013698,2]
[383436361,1756937432145,-317.64664227,0.00013698,2]
[383436363,1756937432155,-52.73361626,0.00013698,2]
[383436364,1756937432166,-427.26638374,0.00013698,2]
[383436365,1756937432175,-215.90387163,0.00013698,2]
[383436368,1756937437883,-9928.21013542,0.00013561,2]
[383436369,1756937437893,-264.09612837,0.00013698,2]
[383436370,1756937437903,-480.0,0.00013698,2]
[383436371,1756937437913,-480.0,0.00013698,2]
[383436372,1756937437922,-485.99990817,0.00013698,2]
[383436373,1756937437932,-480.0,0.00013698,2]
[383436374,1756937437942,-289.77427472,0.00013698,2]
[383436375,1756937437951,-480.0,0.00013698,2]
[383436376,1756937437961,-480.0,0.00013698,2]
[383436377,1756937437971,-480.0,0.00013698,2]
[383436378,1756937437981,-480.0,0.00013698,2]
[383436379,1756937437991,-605.35,0.00013698,2]
[383436380,1756937438000,-480.0,0.00013698,2]
[383436381,1756937438011,-480.0,0.00013698,2]
[383436382,1756937438021,-480.0,0.00013698,2]
[383436383,1756937438031,-480.0,0.00013698,2]
[383436384,1756937438040,-480.0,0.00013698,2]
[383436385,1756937438050,-480.0,0.00013698,2]
[383436386,1756937438059,-480.0,0.00013698,2]
[383436387,1756937438069,-480.0,0.00013698,2]
[383436388,1756937438078,-480.0,0.00013698,2]
[383436389,1756937438088,-480.0,0.00013698,2]
[383436390,1756937438098,-480.0,0.00013698,2]
[383436391,1756937438108,-480.0,0.00013698,2]
[383436392,1756937438118,-480.0,0.00013698,2]
[383436393,1756937438127,-480.0,0.00013698,2]
[383436394,1756937438137,-480.0,0.00013698,2]
[383436395,1756937438147,-515.4101709,0.00013698,2]
[383436396,1756937438157,-480.0,0.00013698,2]
[383436397,1756937438166,-480.0,0.00013698,2]
[383436398,1756937438176,-480.0,0.00013698,2]
[383436399,1756937438185,-480.0,0.00013698,2]
[383436400,1756937438195,-480.0,0.00013698,2]
[383436401,1756937438205,-480.0,0.00013698,2]
[383436402,1756937438215,-480.0,0.00013698,2]
[383436403,1756937438225,-480.0,0.00013698,2]
[383436404,1756937438235,-480.0,0.00013698,2]
[383436405,1756937438244,-480.0,0.00013698,2]
[383436406,1756937438255,-480.0,0.00013698,2]
[383436407,1756937438265,-480.0,0.00013698,2]
[383436408,1756937438274,-480.0,0.00013698,2]
[383436409,1756937438284,-286.33439683,0.00013698,2]
[383436410,1756937438294,-480.0,0.00013698,2]
[383436411,1756937438303,-480.0,0.00013698,2]
[383436412,1756937438313,-480.0,0.00013698,2]
[383436413,1756937438322,-480.0,0.00013698,2]
[383436414,1756937438331,-480.0,0.00013698,2]
[383436415,1756937438341,-480.0,0.00013698,2]
[383436416,1756937438350,-480.0,0.00013698,2]
[383436417,1756937438360,-154.88,0.00013698,2]
[383436418,1756937438370,-480.0,0.00013698,2]
[383436419,1756937438380,-480.0,0.00013698,2]
[383436420,1756937438389,-480.0,0.00013698,2]
[383436421,1756937438399,-480.0,0.00013698,2]
[383436422,1756937438409,-480.0,0.00013698,2]
[383436423,1756937438419,-480.0,0.00013698,2]
[383436424,1756937438429,-480.0,0.00013698,2]
[383436425,1756937438438,-480.0,0.00013698,2]
[383436426,1756937438447,-480.0,0.00013698,2]
[383436427,1756937438457,-480.0,0.00013698,2]
[383436428,1756937438470,-480.0,0.00013698,2]
[383436429,1756937438479,-594.30264661,0.00013698,2]
[383436430,1756937438488,-480.0,0.00013698,2]
[383436431,1756937438498,-480.0,0.00013698,2]
[383436432,1756937438508,-480.0,0.00013698,2]
[383436433,1756937438518,-480.0,0.00013698,2]
[383436434,1756937438527,-480.0,0.00013698,2]
[383436435,1756937438537,-480.0,0.00013698,2]
[383436436,1756937438547,-480.0,0.00013698,2]
[383436437,1756937438556,-480.0,0.00013698,2]
[383436438,1756937438566,-480.0,0.00013698,2]
[383436439,1756937438575,-480.0,0.00013698,2]
[383436440,1756937438585,-480.0,0.00013698,2]
[383436441,1756937438595,-480.0,0.00013698,2]
[383436442,1756937438605,-480.0,0.00013698,2]
[383436443,1756937438615,-351.46307101,0.00013698,2]
[383436444,1756937438624,-480.0,0.00013698,2]
[383436445,1756937438633,-480.0,0.00013698,2]
[383436446,1756937438642,-497.27,0.00013698,2]
[383436447,1756937438651,-480.0,0.00013698,2]
[383436448,1756937438660,-584.38,0.00013698,2]
[383436449,1756937438670,-480.0,0.00013698,2]
[383436450,1756937438679,-480.0,0.00013698,2]
[383436451,1756937438688,-480.0,0.00013698,2]
[383436452,1756937438698,-480.0,0.00013698,2]
[383436453,1756937438707,-480.0,0.00013698,2]
[383436454,1756937438717,-535.45468136,0.00013698,2]
[383436455,1756937438727,-480.0,0.00013698,2]
[383436456,1756937438741,-480.0,0.00013698,2]
[383436457,1756937438750,-480.0,0.00013698,2]
[383436458,1756937438760,-480.0,0.00013698,2]
[383436459,1756937438770,-480.0,0.00013698,2]
[383436460,1756937438780,-480.0,0.00013698,2]
[383436461,1756937438789,-480.0,0.00013698,2]
[383436462,1756937438799,-480.0,0.00013698,2]
[383436463,1756937438809,-480.0,0.00013698,2]
[383436464,1756937438819,-480.0,0.00013698,2]
[383436465,1756937438828,-480.0,0.00013698,2]
[383436466,1756937438838,-480.0,0.00013698,2]
[383436467,1756937438848,-2207.28,0.00013698,2]
[383436468,1756937438857,-480.0,0.00013698,2]
[383436469,1756937438867,-480.0,0.00013698,2]
[383436470,1756937438876,-480.0,0.00013698,2]
[383436471,1756937438886,-486.09044466,0.00013698,2]
[383436472,1756937438896,-480.0,0.00013698,2]
[383436473,1756937438905,-480.0,0.00013698,2]
[383436474,1756937438915,-670.02,0.00013698,2]
[383436475,1756937438924,-480.0,0.00013698,2]
[383436476,1756937438934,-480.0,0.00013698,2]
[383436477,1756937438944,-480.0,0.00013698,2]
[383436478,1756937438953,-480.0,0.00013698,2]
[383436479,1756937438964,-480.0,0.00013698,2]
[383436480,1756937438974,-486.07,0.00013698,2]
[383436481,1756937438983,-480.0,0.00013698,2]
[383436482,1756937438993,-480.0,0.00013698,2]
[383436483,1756937439003,-482.02341207,0.00013698,2]
[383436484,1756937439012,-480.0,0.00013698,2]
[383436485,1756937439022,-376.34318526,0.00013698,2]
[383436486,1756937439031,-480.0,0.00013698,2]
[383436487,1756937439040,-480.0,0.00013698,2]
[383436488,1756937439051,-870.48,0.00013698,2]
[383436489,1756937439060,-480.0,0.00013698,2]
[383436490,1756937439070,-501.8,0.00013698,2]
[383436491,1756937439079,-373.04717275,0.00013698,2]
[383436492,1756937439088,-480.0,0.00013698,2]
[383436493,1756937439097,-480.0,0.00013698,2]
[383436494,1756937439107,-997.61,0.00013698,2]
[383436495,1756937439116,-498.31768226,0.00013698,2]
[383436496,1756937439126,-480.0,0.00013698,2]
[383436497,1756937439135,-480.0,0.00013698,2]
[383436498,1756937439145,-480.0,0.00013698,2]
[383436499,1756937439155,-480.0,0.00013698,2]
[383436500,1756937439165,-208.32049847,0.00013698,2]